bitfinex-derivatives/quotes_ETHF0:USTF0_20251117
["timestamp","ask_amount","ask_price","bid_price","bid_amount"]
[1763393189765,3.8038,3123.9,3121.6,1.69292342]
[1763393189766,3.2078,3123.4,3122.2,3.2078]
[1763393190065,3.2078,3122.4,3121.4,3.2078]
[1763393190255,3.2078,3122.0,3121.0,3.2078]
[1763393190458,3.2078,3121.6,3121.0,3.2078]
[1763393190653,0.00480415,3121.6,3121.4,3.2078]
[1763393190857,3.2078,3122.3,3121.4,3.2078]
[1763393191156,3.2078,3123.0,3122.0,0.6104]
[1763393191356,2.60573717,3123.6,3122.2,3.2078]
[1763393191555,3.2078,3123.1,3122.2,3.72712]
[1763393191760,3.2078,3123.1,3122.2,3.2078]
[1763393191965,0.00480415,3123.0,3122.6,3.2078]
[1763393192364,0.00480415,3123.0,3122.3,0.00480415]
[1763393192564,0.00480415,3123.0,3122.7,3.2078]
[1763393194168,0.00480415,3123.0,3122.3,0.00480415]
[1763393194470,3.2078,3122.8,3122.3,0.00480415]
[1763393195373,1.81694576,3122.7,3122.3,0.00480415]
[1763393195764,3.2078,3122.8,3122.3,0.00480415]
[1763393195962,0.00480415,3123.0,3122.6,3.72706]
[1763393196165,0.00480415,3123.0,3122.6,3.2078]
[1763393197068,0.00480415,3123.0,3122.6,3.72706]
[1763393197270,0.00480415,3123.0,3122.6,3.2078]
[1763393198373,0.00480415,3123.0,3122.8,0.51922]
[1763393198565,0.00480415,3123.0,3122.9,0.51921]
[1763393198874,0.00293074,3123.1,3123.0,1.12959]
[1763393199069,0.00293074,3123.1,3123.0,4.33739]
[1763393199769,3.074e-05,3123.1,3123.0,3.2078]
[1763393200571,3.074e-05,3123.1,3123.0,4.33739]
[1763393200778,3.2078,3124.0,3123.0,3.8182]
[1763393200976,3.2078,3124.0,3123.4,3.2078]
[1763393201172,3.2078,3124.0,3123.4,3.72692]
[1763393201376,3.2078,3124.0,3123.4,3.2078]
[1763393201675,3.2078,3124.6,3123.9,0.552]
[1763393201868,3.2078,3124.6,3124.2,0.51898]
[1763393202172,3.2078,3124.6,3123.9,0.552]
[1763393202173,3.2078,3125.0,3124.4,0.51896]
[1763393202377,3.2078,3125.0,3124.3,3.2078]
[1763393202875,0.00809034,3125.0,3124.9,3.2078]
[1763393203676,2.25793546,3127.2,3124.9,3.2078]
[1763393203677,4.31953958,3127.1,3124.9,9.2078]
[1763393203970,3.2078,3126.6,3125.9,3.2078]
[1763393204174,3.2078,3126.1,3125.4,3.2078]
[1763393204375,3.2078,3126.5,3125.8,3.2078]
[1763393204569,3.21641614,3126.5,3125.8,3.21529195]
[1763393204772,3.2078,3126.1,3125.8,0.00749195]
[1763393205073,0.00861614,3126.5,3125.8,3.21529195]
[1763393206372,1.81694576,3126.4,3125.8,0.00749195]
[1763393206679,3.2078,3126.3,3125.8,0.00749195]
[1763393207575,0.00861614,3126.5,3125.8,0.00749195]
[1763393208480,0.00861614,3126.5,3126.2,3.2078]
[1763393208671,1.11173958,3127.7,3126.8,0.51855]
[1763393208672,3.2078,3127.7,3126.8,0.51855]
[1763393208871,3.2078,3127.7,3126.9,3.2078]
[1763393209475,3.2078,3127.7,3126.6,0.6104]
[1763393209676,3.2078,3127.7,3126.1,3.2078]
[1763393209677,3.2078,3127.2,3126.1,3.2078]
[1763393210183,3.2078,3127.2,3126.6,3.2078]
[1763393210379,1.81694576,3127.1,3126.6,3.2078]
[1763393210586,0.00316034,3127.5,3127.0,3.2078]
[1763393210888,0.00316034,3127.5,3127.4,3.2078]
[1763393211379,0.00316034,3127.5,3127.3,3.2078]
[1763393211681,0.00316034,3127.5,3126.9,3.2078]
[1763393211881,0.00316034,3127.5,3127.3,3.2078]
[1763393214385,2.53502263,3128.7,3127.5,0.5588]
[1763393214386,3.2078,3128.5,3127.5,0.5588]
[1763393214585,0.0346,3128.7,3127.9,3.2078]
[1763393214982,3.2078,3128.5,3126.7,40.8]
[1763393215177,0.3689,3128.4,3127.6,3.2078]
[1763393215379,0.3689,3128.4,3127.7,0.00479624]
[1763393215380,3.2078,3128.0,3127.7,0.00479624]
[1763393215585,3.2078,3128.0,3126.7,3.2078]
[1763393215892,3.2078,3126.8,3125.8,0.0026878]
[1763393216086,3.2078,3125.9,3124.5,3.2078]
[1763393216287,3.2078,3125.1,3124.5,3.2078]
[1763393216493,3.2078,3124.7,3124.0,3.2078]
[1763393216697,0.00476987,3124.7,3124.2,0.51899]
[1763393216996,0.00892356,3124.7,3124.5,3.2078]
[1763393217683,3.2078,3125.8,3124.5,9.72674]
[1763393217888,3.2078,3125.8,3124.5,3.2078]
[1763393218089,3.2078,3125.8,3124.5,3.72674]
[1763393218395,3.2078,3125.8,3125.0,3.2078]
[1763393218796,3.21082639,3125.8,3125.0,3.2078]
[1763393220491,3.21082639,3125.8,3124.8,0.5588]
[1763393220492,0.00302639,3125.8,3125.6,3.2078]
[1763393220694,0.5757,3127.5,3125.7,0.5588]
[1763393220898,2.062853,3128.4,3125.7,0.5588]
[1763393220899,3.2078,3127.9,3127.1,3.2078]
[1763393221090,3.2078,3127.5,3126.7,3.2078]
[1763393221390,0.5757,3127.5,3126.6,3.2078]
[1763393221589,3.2078,3127.6,3126.6,3.2078]
[1763393221800,3.2078,3127.2,3126.6,3.21127401]
[1763393223389,0.00408374,3127.6,3125.8,3.2078]
[1763393223390,3.2078,3126.7,3125.8,3.2078]
[1763393223586,0.5757,3126.6,3125.8,3.2078]
[1763393223785,3.2078,3126.1,3124.9,3.2078]
[1763393223987,3.2078,3125.2,3124.5,3.2078]
[1763393224390,3.2078,3125.6,3124.5,3.2078]
[1763393224598,0.00479624,3125.4,3124.7,0.00479624]
[1763393225097,0.00479624,3125.4,3124.9,3.2078]
[1763393225296,0.00370384,3125.6,3125.3,3.72661]
[1763393225494,3.2078,3126.7,3125.3,3.2078]
[1763393225699,3.2078,3126.7,3125.0,0.5588]
[1763393225700,3.2078,3126.7,3125.7,3.2078]
[1763393226092,3.2078,3126.1,3125.3,3.2078]
[1763393226396,3.2078,3125.7,3124.9,3.2078]
[1763393226891,1.81694576,3125.6,3124.9,3.2078]
[1763393227084,3.2078,3125.2,3124.7,0.00479624]
[1763393227283,5.02474576,3125.6,3124.8,3.2078]
[1763393227489,3.2078,3125.6,3124.8,3.2078]
[1763393227799,1.81694576,3125.5,3124.8,3.2078]
[1763393227998,3.2078,3125.6,3124.8,3.2078]
[1763393228190,1.81694576,3125.5,3124.8,3.2078]
[1763393228393,3.2078,3125.1,3124.7,0.00479624]
[1763393229097,3.2078,3125.5,3124.7,3.21259624]
[1763393229799,0.00303673,3126.1,3125.3,0.5188]
[1763393229997,0.00303673,3126.1,3125.5,3.2078]
[1763393230200,3.2078,3126.0,3125.1,3.2078]
[1763393230689,3.2078,3126.0,3125.2,0.51883]
[1763393230894,3.2078,3126.0,3125.1,3.2078]
[1763393231398,2.51875165,3125.9,3125.1,3.2078]
[1763393231705,3.2078,3126.0,3125.1,3.2078]
[1763393231894,0.701944,3125.9,3125.1,3.2078]
[1763393232799,3.2078,3125.6,3124.7,0.00479624]
[1763393232996,1.81694576,3125.8,3125.0,0.5588]
[1763393233199,0.00303673,3126.1,3125.7,3.2078]
[1763393234291,0.00303673,3126.1,3125.0,0.5588]
[1763393234494,3.2078,3125.6,3124.9,3.2078]
[1763393234698,5.02474576,3126.0,3124.9,3.2078]
[1763393234904,3.2078,3126.0,3125.3,3.2078]
[1763393235097,0.00303673,3126.1,3125.3,3.2078]
[1763393235599,0.00303673,3126.1,3125.7,3.7666]
[1763393235797,3.2078,3126.9,3125.9,0.51871]
[1763393235998,2.25793546,3127.9,3125.7,3.7666]
[1763393235999,3.2078,3127.7,3126.6,0.5588]
[1763393236198,0.0346,3128.7,3127.6,3.2078]
[1763393236199,1.14633958,3128.7,3127.6,3.2078]
[1763393236398,0.0346,3128.7,3128.1,3.2078]
[1763393236797,0.0387403,3128.7,3128.1,3.2118166]
[1763393237199,1.81694576,3128.6,3128.1,3.2118166]
[1763393238797,0.0387403,3128.7,3128.1,3.2118166]
[1763393239398,1.81694576,3128.6,3128.1,0.0040166]
[1763393239599,0.0387403,3128.7,3128.1,0.0040166]
[1763393240007,1.81694576,3128.6,3128.4,3.2078]
[1763393240201,0.0387403,3128.7,3128.4,3.2078]
[1763393240505,0.0387403,3128.7,3128.4,3.7159]
[1763393241509,3.2465403,3128.7,3128.1,0.0040166]
[1763393241810,0.0387403,3128.7,3128.4,3.2078]
[1763393242008,0.0387403,3128.7,3128.4,3.6963]
[1763393242308,4.28055194,3130.0,3128.4,12.8923]
[1763393242309,3.2078,3130.0,3128.4,12.8923]
[1763393242504,3.2078,3130.4,3129.5,3.2078]
[1763393242708,3.2078,3130.4,3129.5,3.72591]
[1763393242911,3.2078,3130.4,3129.5,3.2078]
[1763393243104,1.81694576,3131.0,3129.3,0.4885]
[1763393243105,3.2078,3131.0,3130.0,3.2078]
[1763393243306,3.21124804,3131.0,3130.0,3.2078]
[1763393243506,0.00344804,3131.0,3130.4,3.2078]
[1763393243707,0.00344804,3131.0,3130.4,3.21148683]
[1763393244308,3.21124804,3131.0,3130.4,0.00368683]
[1763393245111,3.2078,3130.6,3130.4,0.00368683]
[1763393245512,3.2078,3130.7,3130.4,0.00368683]
[1763393245708,3.2078,3130.6,3130.4,0.00368683]
[1763393245903,1.81694576,3130.9,3130.4,0.00368683]
[1763393246209,0.00344804,3131.0,3130.4,0.00368683]
[1763393246612,0.00344804,3131.0,3130.8,3.2078]
[1763393247817,3.2078,3132.0,3130.8,3.2078]
[1763393248012,0.5757,3132.9,3131.9,3.2078]
[1763393248311,2.25793546,3133.9,3132.0,0.4885]
[1763393248312,1.81694576,3132.8,3132.0,0.4885]
[1763393248608,3.2078,3132.7,3132.1,0.00478827]
[1763393248912,0.00296402,3132.8,3132.1,0.00478827]
[1763393249113,3.2078,3132.7,3132.1,0.00478827]
[1763393249611,3.2078,3132.3,3132.1,0.00478827]
[1763393250116,3.2078,3132.3,3131.3,3.2078]
[1763393250314,3.2078,3131.9,3131.3,3.2078]
[1763393250712,3.2078,3131.9,3130.9,3.2078]
[1763393251009,0.4916,3132.0,3128.4,0.4885]
[1763393251010,3.2078,3131.3,3131.1,0.00478827]
[1763393251208,3.2078,3131.3,3130.5,3.2078]
[1763393251614,0.00476172,3131.7,3131.0,3.2078]
[1763393251911,3.2078,3131.6,3130.6,3.2078]
[1763393252115,0.00476172,3131.7,3131.0,3.2078]
[1763393252306,0.00476172,3131.7,3131.1,0.4885]
[1763393252709,3.2078,3131.6,3130.8,0.00478827]
[1763393254111,3.2078,3131.6,3131.1,3.2078]
[1763393254318,3.2078,3131.6,3130.8,0.00478827]
[1763393254718,1.81694576,3131.5,3130.8,0.00478827]
[1763393255911,3.2078,3131.6,3130.8,0.00478827]
[1763393256116,1.81694576,3131.5,3130.8,0.00478827]
[1763393256318,3.2078,3131.6,3130.8,0.00478827]
[1763393257016,0.00476172,3131.7,3131.2,3.2078]
[1763393257217,0.4916,3132.0,3130.9,0.51787]
[1763393257218,3.2078,3133.0,3131.6,3.2078]
[1763393257523,3.2078,3132.6,3131.6,3.2078]
[1763393257913,1.81694576,3132.5,3131.6,3.2078]
[1763393258113,3.2078,3132.2,3131.6,3.2078]
[1763393258415,3.21258827,3132.2,3131.6,3.2078]
[1763393258624,0.00478827,3132.2,3131.6,3.2078]
[1763393261118,3.21258827,3132.2,3131.2,3.2078]
[1763393261421,3.21258827,3132.2,3131.1,3.6963]
[1763393261729,1.81694576,3132.1,3131.1,3.6963]
[1763393261920,0.00478827,3132.2,3131.1,3.2078]
[1763393262228,3.2078,3131.8,3131.1,3.2078]
[1763393263028,3.2078,3131.8,3130.8,0.00478827]
[1763393263325,0.00478827,3132.2,3130.8,0.00478827]
[1763393263326,3.2078,3130.9,3130.8,0.00478827]
[1763393263532,3.2078,3130.9,3130.4,0.00368683]
[1763393263827,3.2078,3130.5,3129.7,3.2078]
[1763393264028,3.2078,3130.9,3129.7,3.2078]
[1763393264227,3.2078,3130.9,3130.2,3.2078]
[1763393264630,3.21605868,3130.9,3130.2,3.21619447]
[1763393266022,1.81694576,3130.8,3130.2,3.21619447]
[1763393266526,3.21605868,3130.9,3130.2,3.21619447]
[1763393266728,3.21605868,3130.9,3130.2,0.00839447]
[1763393266931,3.21605868,3130.9,3130.2,3.73419447]
[1763393267229,0.00825868,3130.9,3130.6,3.2078]
[1763393268138,3.2078,3132.2,3131.1,0.4885]
[1763393268430,3.2078,3132.2,3131.5,3.2078]
[1763393268431,0.69646766,3132.1,3131.5,3.2078]
[1763393269133,0.7042992,3132.1,3131.5,3.2078]
[1763393269327,3.2078,3131.7,3131.1,3.2078]
[1763393269626,3.2078,3131.3,3130.6,3.2078]
[1763393269828,1.18920438,3131.2,3130.6,3.2078]
[1763393270031,0.69760438,3131.1,3130.6,3.2078]
[1763393270431,1.11173958,3131.1,3130.6,3.2078]
[1763393270628,1.80934396,3131.1,3130.6,3.2078]
[1763393270829,0.69760438,3131.0,3130.6,3.2078]
[1763393271032,0.69760438,3130.9,3130.6,3.2078]
[1763393271234,3.2078,3131.5,3130.6,3.2078]
[1763393271532,0.69953266,3131.4,3130.9,3.2078]
[1763393271736,0.69953266,3131.3,3130.9,3.2078]
[1763393271931,0.69953266,3131.2,3130.5,3.2078]
[1763393272129,0.69953266,3131.1,3130.9,3.2078]
[1763393272338,0.70018978,3131.0,3130.5,3.2078]
[1763393272533,4.31953958,3131.5,3130.5,3.2078]
[1763393272838,1.81214134,3131.4,3130.5,3.2078]
[1763393273035,0.70040176,3131.3,3130.5,3.2078]
[1763393273341,0.70040176,3131.2,3130.5,3.2078]
[1763393273532,0.70040176,3131.1,3130.5,3.2078]
[1763393273731,1.11173958,3131.4,3130.5,3.2078]
[1763393273732,0.70040176,3131.0,3130.5,3.2078]
[1763393274037,0.70040176,3130.9,3130.5,3.2078]
[1763393274235,1.11173958,3131.4,3130.5,3.2078]
[1763393274435,0.70047251,3131.3,3130.9,3.2078]
[1763393274740,0.70047251,3131.2,3130.9,3.2078]
[1763393274938,0.70047251,3131.1,3130.9,3.2078]
[1763393275139,0.70047251,3131.0,3130.9,3.2078]
[1763393275539,0.70047251,3131.3,3130.9,3.2078]
[1763393275839,0.70047251,3131.2,3130.9,3.2078]
[1763393276040,0.70047251,3131.1,3130.9,3.2078]
[1763393276230,0.70047251,3131.0,3130.9,3.2078]
[1763393276431,1.81221209,3131.4,3130.9,3.2078]
[1763393276741,0.70047251,3131.3,3130.9,3.2078]
[1763393276940,0.70047251,3131.2,3130.9,3.2078]
[1763393277137,0.70047251,3131.1,3130.9,3.2078]
[1763393277339,1.11173958,3131.6,3130.9,3.2078]
[1763393277537,1.11173958,3131.5,3130.9,3.2078]
[1763393278237,1.11173958,3131.4,3130.9,3.2078]
[1763393278443,0.70090626,3131.3,3130.9,3.2078]
[1763393278643,0.70090626,3131.2,3130.9,3.2078]
[1763393278846,0.70090626,3131.1,3130.9,3.2078]
[1763393279041,0.31719605,3131.0,3130.9,3.2078]
[1763393279237,1.11173958,3131.5,3130.9,3.2078]
[1763393279238,1.11173958,3131.5,3130.9,3.72568]
[1763393279446,1.11173958,3131.5,3131.4,3.2078]
[1763393279746,1.11173958,3131.6,3131.4,3.2078]
[1763393280044,1.11173958,3131.8,3131.4,3.2078]
[1763393280246,3.2078,3131.9,3131.4,3.2078]
[1763393280547,1.11173958,3131.8,3131.4,3.2078]
[1763393281040,1.11173958,3131.9,3131.4,3.2078]
[1763393281250,1.11957112,3132.1,3131.8,3.6681]
[1763393281438,0.00783154,3132.1,3131.8,3.2078]
[1763393282750,3.154e-05,3132.1,3131.8,3.6681]
[1763393282948,1.693953,3133.1,3132.5,0.4603]
[1763393283150,1.693953,3133.3,3133.0,3.2078]
[1763393283349,3.2078,3133.5,3133.0,3.2078]
[1763393283850,3.2078,3133.5,3133.0,3.21163713]
[1763393283851,0.00230586,3133.5,3133.0,3.21163713]
[1763393284049,0.00230586,3133.5,3133.4,3.2078]
[1763393284240,0.0346,3133.7,3133.6,0.4337]
[1763393284644,1.693953,3134.8,3134.4,0.4073]
[1763393284844,3.2078,3135.2,3134.4,3.6151]
[1763393285049,3.2078,3135.8,3135.0,0.5172]
[1763393285248,0.00255864,3135.8,3135.4,3.72493]
[1763393285454,3.2078,3136.4,3135.4,6.3966]
[1763393285642,4.03422345,3137.3,3135.9,3.2078]
[1763393285643,3.2078,3136.6,3135.9,3.2078]
[1763393285841,3.2078,3136.4,3135.5,3.2078]
[1763393286045,3.2078,3136.4,3135.9,0.00478827]
[1763393286246,3.26331399,3136.4,3135.9,0.00478827]
[1763393286454,0.05875047,3136.4,3135.9,3.2156228]
[1763393286655,3.648e-05,3136.4,3136.3,3.2078]
[1763393287460,0.09064158,3137.3,3136.5,0.4255]
[1763393287667,0.09064158,3137.3,3137.2,3.2078]
[1763393287973,0.0346,3138.7,3137.4,0.447]
[1763393288156,0.0346,3138.7,3138.4,3.2078]
[1763393288357,3.03888409,3140.1,3138.7,0.51658]
[1763393288358,3.2078,3140.0,3138.7,0.51658]
[1763393288560,3.2078,3140.0,3138.4,3.21032265]
[1763393288561,3.2078,3140.0,3139.4,3.2078]
[1763393289063,3.2078,3141.4,3140.0,0.51637]
[1763393289268,3.2078,3141.4,3139.2,0.4603]
[1763393289269,3.2078,3141.8,3140.6,3.2078]
[1763393289456,3.21009891,3141.8,3141.0,3.2078]
[1763393289665,3.2078,3141.3,3140.6,0.00250465]
[1763393289958,3.26551879,3141.8,3140.9,3.2078]
[1763393290164,3.21009891,3141.8,3140.9,3.2078]
[1763393290363,3.21009891,3141.8,3140.6,0.00250465]
[1763393290364,0.00229891,3141.8,3141.7,3.2078]
[1763393290561,0.5054,3143.7,3141.7,3.2078]
[1763393290562,3.2078,3143.4,3141.9,0.51607]
[1763393290867,3.2078,3143.4,3142.2,3.2078]
[1763393291064,3.2078,3143.4,3142.3,0.00478034]
[1763393291266,0.0346,3143.7,3143.0,3.6681]
[1763393291659,0.03760435,3143.7,3143.4,3.2078]
[1763393292069,0.03760435,3143.7,3143.0,3.21170157]
[1763393292275,3.2078,3143.4,3143.0,0.00390157]
[1763393292465,3.2078,3143.4,3142.3,0.00478034]
[1763393292669,6.0,3143.6,3141.4,3.2078]
[1763393292670,3.2078,3142.4,3141.4,3.2078]
[1763393293267,3.2078,3142.9,3142.2,3.2078]
[1763393293465,3.2078,3143.3,3142.2,3.21044332]
[1763393293661,0.00472804,3143.1,3143.0,3.2078]
[1763393293862,0.00472804,3143.1,3143.0,3.6681]
[1763393293863,2.804e-05,3143.1,3143.0,3.6681]
[1763393294066,4.593e-05,3143.8,3143.6,0.51579]
[1763393294266,3.2078,3144.8,3143.7,3.2078]
[1763393294572,3.2078,3144.8,3143.0,0.4603]
[1763393294573,3.6786,3144.9,3144.1,3.2078]
[1763393294877,0.0553709,3145.1,3144.1,3.2078]
[1763393295066,3.2078,3145.4,3144.1,3.2078]
[1763393295067,3.2078,3145.4,3144.2,0.00477259]
[1763393295267,0.00400933,3145.1,3144.6,3.2078]
[1763393295478,0.00400933,3145.1,3144.6,3.21013662]
[1763393295772,0.00400933,3145.1,3145.0,3.2078]
[1763393296671,0.00400933,3145.1,3144.6,0.00233662]
[1763393296672,0.00400933,3145.1,3144.6,3.21013662]
[1763393296873,1.82095509,3145.1,3144.6,3.21013662]
[1763393297067,0.00400933,3145.1,3144.6,3.21013662]
[1763393297268,0.00400933,3145.1,3144.6,0.00233662]
[1763393297476,0.00400933,3145.1,3144.9,3.2078]
[1763393297673,3.2078,3146.4,3145.0,0.51556]
[1763393297875,3.2078,3146.5,3145.7,3.2078]
[1763393298077,0.05534268,3146.3,3145.8,0.00477259]
[1763393298274,1.81694576,3146.9,3145.8,0.00477259]
[1763393298581,3.73392868,3147.0,3146.1,3.2078]
[1763393298775,1.81937071,3146.9,3146.1,3.2078]
[1763393298973,0.00242495,3146.9,3146.1,3.2078]
[1763393299178,0.00242495,3146.9,3146.5,3.2078]
[1763393299374,3.2078,3147.8,3146.5,3.2078]
[1763393299670,2.53080093,3148.4,3147.7,3.2078]
[1763393299869,2.53080093,3148.4,3146.1,3.2078]
[1763393299870,1.81694576,3147.7,3146.1,3.2078]
[1763393300071,3.2078,3147.1,3146.6,0.00476485]
[1763393300271,1.81694576,3147.7,3146.7,3.2078]
[1763393300471,0.00364021,3147.7,3147.1,3.625]
[1763393300873,0.00364021,3147.7,3146.7,0.00308607]
[1763393300874,3.2078,3148.9,3147.6,3.2078]
[1763393301074,3.2078,3149.7,3148.2,3.625]
[1763393301274,0.09064158,3150.4,3148.6,3.2078]
[1763393301586,0.00473907,3149.8,3149.7,3.2078]
[1763393301974,0.00793996,3149.8,3149.7,0.00293552]
[1763393302178,0.00793996,3149.8,3149.4,3.21256485]
[1763393302179,0.00793996,3149.8,3149.4,3.20327037]
[1763393302685,0.4244,3153.7,3151.9,0.51443]
[1763393302981,3.2078,3154.6,3153.1,3.2078]
[1763393303281,3.2078,3154.6,3152.6,0.4201]
[1763393303282,3.2078,3153.5,3152.7,3.2078]
[1763393303483,3.2078,3152.8,3151.9,3.2078]
[1763393303678,0.00305317,3153.5,3152.8,0.00475722]
[1763393303873,39.78589568,3154.7,3153.1,3.2078]
[1763393304071,3.2078,3155.3,3154.1,3.2078]
[1763393304274,3.2078,3154.4,3152.8,3.2078]
[1763393304673,3.2078,3153.9,3152.7,0.00279298]
[1763393304870,3.2078,3153.6,3153.3,0.00475722]
[1763393305073,3.2078,3153.6,3152.7,0.00279298]
[1763393305292,3.2078,3152.8,3151.8,3.2078]
[1763393305474,3.2078,3153.1,3151.8,3.2078]
[1763393305673,1.81694576,3153.5,3152.4,0.4451]
[1763393305883,0.00310186,3153.9,3153.0,3.2078]
[1763393306182,0.05518768,3155.1,3153.8,3.2078]
[1763393306386,3.2078,3156.2,3154.8,3.6529]
[1763393306587,3.2078,3156.0,3154.8,0.4451]
[1763393306883,0.05517276,3156.1,3154.9,3.2078]
[1763393306884,3.2078,3155.5,3154.9,3.2078]
[1763393307085,3.2078,3155.0,3153.8,3.2078]
[1763393307274,3.2078,3154.3,3154.1,0.00475722]
[1763393307676,3.2078,3154.3,3153.8,0.002278]
[1763393307677,7.81694576,3154.2,3152.7,3.2078]
[1763393307982,3.2078,3152.8,3151.0,0.5]
[1763393308186,3.2078,3151.9,3151.5,3.6529]
[1763393308489,3.2078,3151.9,3151.0,0.5]
[1763393308780,3.2078,3151.1,3148.9,3.2078]
[1763393308973,3.2078,3151.5,3150.0,3.2078]
[1763393309177,3.2078,3150.9,3150.0,3.2078]
[1763393309373,0.00475722,3151.1,3150.5,3.2078]
[1763393309580,3.2078,3151.6,3150.9,3.2078]
[1763393309783,3.2078,3151.1,3149.9,0.4451]
[1763393309984,1.81694576,3151.0,3150.1,3.2078]
[1763393310187,0.00245229,3151.9,3149.9,0.44882363]
[1763393310188,3.2078,3151.1,3149.9,0.44882363]
[1763393310489,3.2078,3150.3,3149.9,0.00372363]
[1763393310786,3.2078,3150.3,3147.9,3.2078]
[1763393310982,3.2078,3149.3,3147.9,3.2078]
[1763393311184,3.2078,3148.5,3147.4,3.2078]
[1763393311483,3.2078,3148.5,3141.0,1.06960365]
[1763393311484,3.2078,3149.2,3147.8,3.2078]
[1763393311786,0.00476501,3148.8,3148.6,0.4451]
[1763393312084,0.0023303,3149.2,3148.7,3.2078]
[1763393312289,3.2078,3149.0,3148.2,0.00476501]
[1763393312884,0.0023303,3149.2,3148.6,3.6529]
[1763393313186,11.1815139,3154.5,3149.0,3.2078]
[1763393313187,3.2078,3150.6,3149.0,3.2078]
[1763393313487,3.2078,3150.2,3149.5,0.00476501]
[1763393313689,3.2078,3150.6,3149.6,3.2078]
[1763393313981,3.2078,3150.1,3149.5,0.00476501]
[1763393314190,3.2078,3150.1,3148.6,0.4451]
[1763393314191,3.2078,3149.7,3148.6,0.4451]
[1763393314376,3.2078,3148.9,3148.6,0.4451]
[1763393314688,3.2078,3149.3,3148.6,0.4451]
[1763393315084,3.2078,3148.9,3147.9,3.2078]
[1763393315389,0.00476501,3148.7,3148.1,0.00476501]
[1763393315580,0.00476501,3148.7,3148.3,3.2078]
[1763393316075,0.00361143,3150.6,3148.3,3.2078]
[1763393316076,3.2078,3149.6,3148.6,0.4451]
[1763393316280,3.2078,3149.6,3149.1,3.2078]
[1763393316679,3.2078,3150.0,3149.1,3.2078]
[1763393316875,0.00361143,3150.6,3149.9,3.6529]
[1763393317083,3.2078,3151.8,3150.4,0.51467]
[1763393317285,3.2078,3152.2,3150.9,3.72238]
[1763393317476,3.2078,3152.2,3151.3,3.2078]
[1763393318081,3.2078,3152.2,3151.3,6.38371044]
[1763393318287,0.0032303,3152.2,3151.8,3.2078]
[1763393318588,3.2078,3152.8,3151.8,3.2078]
[1763393318783,3.2078,3152.8,3152.3,3.2078]
[1763393318983,0.0346,3153.7,3152.3,3.2078]
[1763393318984,3.2424,3153.7,3152.3,3.2078]
[1763393319184,3.2078,3153.1,3152.3,3.2078]
[1763393319385,0.002468,3153.1,3152.3,3.2078]
[1763393319585,3.2078,3153.6,3152.8,3.6529]
[1763393319896,0.0346,3153.7,3152.9,3.21255737]
[1763393320185,0.0346,3153.7,3152.9,3.17595737]
[1763393320387,0.0346,3153.7,3153.2,3.2078]
[1763393320890,3.2078,3154.0,3152.9,0.00475737]
[1763393321099,3.2078,3154.0,3153.5,3.2078]
[1763393321290,3.2078,3154.9,3153.5,3.2078]
[1763393321589,3.2078,3155.7,3154.5,3.2078]
[1763393321781,0.09064158,3156.9,3155.6,0.4451]
[1763393322090,3.29844158,3156.9,3155.8,3.2078]
[1763393322387,0.09064158,3156.9,3156.2,3.2078]
[1763393322591,0.09064158,3156.9,3155.6,0.4451]
[1763393322592,3.2078,3156.3,3155.3,3.2078]
[1763393322785,3.2078,3156.3,3154.8,0.00475737]
[1763393322786,3.2078,3155.9,3154.9,3.2078]
[1763393322991,3.2078,3155.9,3154.8,0.00475737]
[1763393322992,3.2078,3155.3,3154.8,0.00475737]
[1763393323488,0.0023046,3156.3,3154.8,0.00475737]
[1763393323489,3.2078,3154.9,3154.8,0.00475737]
[1763393323787,3.2078,3155.2,3154.8,0.00475737]
[1763393323991,3.2078,3155.7,3155.0,3.2078]
[1763393324193,3.2078,3155.3,3154.8,0.00475737]
[1763393324389,3.2078,3154.9,3154.8,0.00475737]
[1763393324690,3.2078,3154.9,3153.3,3.2078]
[1763393324890,3.2078,3154.9,3153.7,3.2078]
[1763393325089,3.2078,3155.3,3154.1,3.2078]
[1763393325387,3.2078,3154.9,3153.8,3.2078]
[1763393325589,3.2078,3155.7,3154.2,3.2078]
[1763393325795,0.0023046,3156.3,3155.4,3.2078]
[1763393326092,0.09064158,3156.9,3155.9,3.2078]
[1763393326288,4.158e-05,3156.9,3156.6,3.2078]
[1763393326592,4.158e-05,3156.9,3155.6,0.4451]
[1763393326593,4.158e-05,3156.9,3156.4,3.2078]
[1763393326792,4.158e-05,3156.9,3156.3,0.00475737]
[1763393326997,3.2078,3156.6,3156.3,0.00475737]
[1763393327194,3.2078,3156.6,3154.6,3.2078]
[1763393327502,3.2078,3156.6,3154.5,0.0040129]
[1763393327503,3.2078,3155.2,3154.5,0.0040129]
[1763393327689,3.2078,3155.4,3154.5,0.0040129]
[1763393327885,3.2078,3155.2,3154.5,0.0040129]
[1763393328085,3.2078,3154.6,3154.5,0.0040129]
[1763393328287,3.2078,3154.6,3149.8,2.14972255]
[1763393328288,3.21108783,3154.6,3152.9,3.2078]
[1763393328491,3.2078,3154.0,3153.3,3.2078]
[1763393329185,3.21108783,3154.6,3153.3,3.2078]
[1763393329494,3.2078,3154.2,3153.6,0.00475737]
[1763393329790,0.00475737,3154.3,3153.6,0.00475737]
[1763393329995,0.00475737,3154.3,3153.8,3.2078]
[1763393330195,3.2078,3154.0,3153.6,0.00475737]
[1763393330497,0.00475737,3154.3,3153.8,3.72192]
[1763393330694,0.00475737,3154.3,3154.2,3.2078]
[1763393330896,3.2078,3155.1,3154.2,3.2078]
[1763393331096,3.2078,3154.7,3154.2,3.2078]
[1763393331394,3.2078,3155.1,3153.8,3.2078]
[1763393331596,4.158e-05,3156.9,3155.2,3.2078]
[1763393331795,2.09635677,3158.3,3154.2,0.1408]
[1763393331796,3.2078,3159.0,3156.8,3.2078]
[1763393331996,0.00293744,3159.0,3158.4,0.51337]
[1763393332299,0.00293744,3159.0,3158.9,3.2078]
[1763393332300,0.0076662,3159.0,3158.9,3.2078]
[1763393332596,3.2154662,3159.0,3157.6,0.00475737]